Workbook

Sheet Swindle - Summer 2024
B3: SATURDAY SWINDLE - SUMMER 2024
B4: BEST 20 ROUNDS
D5: Total | E5: Ave | G5: Swindle | K5: Latest Result - 11 May 2024
C6: Rounds | D6: S'ford | E6: S'ford | F6: Wins | G6: Pts | L6: Stableford | M6: Swindle
A7: =A6+1 -> 1 | B7: Bryn Owen | C7: 6 | D7: =31+35+40+36+40+33 -> 215 | E7: =D7/C7 -> 35.83333333 | F7: 2 | G7: =11+21+22+15+18+16 -> 103 | L7: Points | M7: Points
A8: 2 | B8: Colin Reardon | C8: 6 | D8: =36+40+38+36+31+29 -> 210 | E8: =D8/C8 -> 35 | F8: 1 | G8: =19+25+17+19+12+7 -> 99 | J8: 1 | K8: Scott Browning | L8: 35 | M8: 18
A9: 3 | B9: Les Bygrave | C9: 6 | D9: =28+31+29+36+31+33 -> 188 | E9: =D9/C9 -> 31.33333333 | G9: =5+14+7+16+10+14 -> 66 | J9: =J8+1 -> 2 | K9: Bryn Owen | L9: 33 | M9: 16
A10: 4 | B10: Terry Poingdestre | C10: 6 | D10: =29+29+33+33+30+32 -> 186 | E10: =D10/C10 -> 31 | G10: =7+7+14+10+7+12 -> 57 | J10: =J9+1 -> 3 | K10: Les Bygrave | L10: 33 | M10: 14
A11: 5 | B11: Simon Hill | C11: 4 | D11: =39+29+28+36 -> 132 | E11: =D11/C11 -> 33 | F11: 2 | G11: =22+8+4+21 -> 55 | J11: 4 | K11: Tim Horan | L11: 32 | M11: 13
A12: 6 | B12: Roger Keen | C12: 6 | D12: =28+30+34+28+36+30 -> 186 | E12: =D12/C12 -> 31 | G12: =4+11+15+2+14+9 -> 55 | J12: 5 | K12: Terry Poingdestre | L12: 32 | M12: 12
A13: 7 | B13: Scott Browning | C13: 4 | D13: =34+28+32+35 -> 129 | E13: =D13/C13 -> 32.25 | F13: 1 | G13: =19+5+9+18 -> 51 | J13: 6 | K13: Martin Thomas | L13: 31 | M13: 11
A14: 8 | B14: John Fitzgerald | C14: 5 | D14: =26+32+37+30+34 -> 159 | E14: =D14/C14 -> 31.8 | G14: =1+16+14+5+13 -> 49 | J14: 7 | K14: Dennis Cantwell | L14: 30 | M14: 10
A15: 9 | B15: Brad Bygrave | C15: 6 | D15: =34+28+31+26+31+26 -> 176 | E15: =D15/C15 -> 29.33333333 | G15: =17+3+10+1+9+3 -> 43 | J15: 8 | K15: Roger Keen | L15: 30 | M15: 9
A16: 10 | B16: Adam Witherington | C16: 5 | D16: =28+31+29+34+29 -> 151 | E16: =D16/C16 -> 30.2 | G16: =6+13+6+13+3 -> 41 | J16: 9 | K16: Kevin Poore | L16: 30 | M16: 8
A17: 11 | B17: Andy Vittery | C17: 3 | D17: =33+39+30 -> 102 | E17: =D17/C17 -> 34 | G17: =15+18+6 -> 39 | J17: 10 | K17: Colin Reardon | L17: 29 | M17: 7
A18: 12 | B18: Colin Price | C18: 4 | D18: =26+32+34+36 -> 128 | E18: =D18/C18 -> 32 | G18: =1+11+11+16 -> 39 | J18: 11 | K18: Neil Howes | L18: 29 | M18: 6
A19: 13 | B19: Kevin Poore | C19: 3 | D19: =30+40+30 -> 100 | E19: =D19/C19 -> 33.33333333 | G19: =10+20+8 -> 38 | J19: 12 | K19: Nick Hayward | L19: 28 | M19: 5
A20: 14 | B20: John Copas | C20: 3 | D20: =31+36+26 -> 93 | E20: =D20/C20 -> 31 | G20: =9+23+4 -> 36 | J20: 13 | K20: John Copas | L20: 26 | M20: 4
A21: 15 | B21: Tim Lloyd | C21: 4 | D21: =29+29+36+29 -> 123 | E21: =D21/C21 -> 30.75 | G21: =6+8+17+4 -> 35 | J21: 14 | K21: Brad Bygrave | L21: 26 | M21: 3
A22: 16 | B22: Simon Cook | C22: 5 | D22: =32+28+33+25+22 -> 140 | E22: =D22/C22 -> 28 | G22: =13+5+13+2+2 -> 35 | J22: 15 | K22: Simon Cook | L22: 22 | M22: 2
A23: 17 | B23: Neil Howes | C23: 4 | D23: =33+25+31+29 -> 118 | E23: =D23/C23 -> 29.5 | G23: =18+1+8+6 -> 33 | J23: 16 | K23: Trevor Vincent | L23: 22 | M23: 1
A24: 18 | B24: Phil Nathan | C24: 2 | D24: =31+34 -> 65 | E24: =D24/C24 -> 32.5 | G24: =12+20 -> 32
A25: 19 | B25: Nick Hayward | C25: 4 | D25: =34+28+32+28 -> 122 | E25: =D25/C25 -> 30.5 | G25: =16+3+8+5 -> 32
A26: 20 | B26: Martin Thomas | C26: 4 | D26: =28+31+30+31 -> 120 | E26: =D26/C26 -> 30 | G26: =4+9+7+11 -> 31
A27: 21 | B27: Paul Sims | C27: 3 | D27: =32+32+25 -> 89 | E27: =D27/C27 -> 29.66666667 | G27: =14+15+2 -> 31
A28: 22 | B28: Tim Horan | C28: 3 | D28: =31+30+32 -> 93 | E28: =D28/C28 -> 31 | G28: =10+6+13 -> 29
A29: 23 | B29: Dennis Cantwell | C29: 3 | D29: =33+24+30 -> 87 | E29: =D29/C29 -> 29 | G29: =17+1+10 -> 28
A30: 24 | B30: John Machin | C30: 4 | D30: =27+28+32+29 -> 116 | E30: =D30/C30 -> 29 | G30: =3+2+12+4 -> 21
A31: 25 | B31: Paul Reardon | C31: 2 | D31: =29+31 -> 60 | E31: =D31/C31 -> 30 | G31: =8+11 -> 19
A32: 26 | B32: Phil Hames | C32: 2 | D32: =31+28 -> 59 | E32: =D32/C32 -> 29.5 | G32: =12+3 -> 15
A33: 27 | B33: Trevor Vincent | C33: 2 | D33: =35+22 -> 57 | E33: =D33/C33 -> 28.5 | G33: =14+1 -> 15
A34: 28 | B34: Iain Maxwell | C34: 2 | D34: =26+34 -> 60 | E34: =D34/C34 -> 30 | G34: =2+12 -> 14
A35: 29 | B35: Simon Lloyd | C35: 1 | D35: 30 | E35: =D35/C35 -> 30 | G35: 9
A36: 30 | B36: Martyn Crichton | C36: 1 | D36: =29 -> 29 | E36: =D36/C36 -> 29 | G36: =5 -> 5
E38: =CONCATENATE("Scores after round on ",MID(K5,17,17)) -> Scores after round on 11 May 2024
E39: Rounds: | F39: =SUM(F6:F36) -> 6
